bitfinex/quotes_ETHUSD_20250708
["timestamp","ask_amount","ask_price","bid_price","bid_amount"]
[1751992786140,9.98792765,2577.2,2577.0,0.1946]
[1751992786316,6.069,2577.2,2577.0,0.1946]
[1751992786516,6.10774334,2577.2,2577.0,0.1946]
[1751992789841,3.8803306,2577.1,2577.0,0.1946]
[1751992790030,3.8803306,2577.1,2577.0,0.001]
[1751992790031,4.6567306,2577.1,2577.0,0.001]
[1751992790352,4.69547394,2577.1,2577.0,0.001]
[1751992790505,25.23681055,2577.1,2577.0,1e-08]
[1751992790707,26.59433741,2577.1,2577.0,1e-08]
[1751992791032,20.7323306,2577.1,2577.0,1e-08]
[1751992792338,22.12827694,2577.1,2577.0,1e-08]
[1751992793622,16.06027694,2577.1,2577.0,1e-08]
[1751992793940,12.12827694,2577.1,2577.0,1e-08]
[1751992795245,10.7323306,2577.1,2577.0,1e-08]
[1751992796047,9.9483306,2577.1,2577.0,1e-08]
[1751992799159,9.9473306,2577.1,2577.0,1e-08]
[1751992799448,6.067,2577.1,2577.0,1e-08]
[1751992799746,9.9473306,2577.1,2577.0,1e-08]
[1751992800146,6.067,2577.1,2577.0,1e-08]
[1751992800669,14.67889512,2577.4,2577.0,0.19360001]
[1751992800670,14.67894315,2577.4,2577.0,0.19360001]
[1751992800829,6.066,2577.3,2577.0,0.99460001]
[1751992801228,6.10474334,2577.3,2577.0,0.99460001]
[1751992801453,9.984835,2577.3,2577.0,0.99460001]
[1751992801662,6.066,2577.3,2577.0,0.99460001]
[1751992802561,3.88027159,2577.2,2577.0,0.19360001]
[1751992802750,6.066,2577.1,2577.0,0.19360001]
[1751992802927,6.10474334,2577.1,2577.0,0.19360001]
[1751992803322,6.10474334,2577.1,2577.0,1e-08]
[1751992803323,9.98507394,2577.1,2577.0,1e-08]
[1751992803528,9.9463306,2577.1,2577.0,1e-08]
[1751992803925,6.066,2577.1,2577.0,1e-08]
[1751992804568,0.1936,2577.3,2577.0,1e-08]
[1751992804863,6.065,2577.2,2577.0,0.19360001]
[1751992805031,6.065,2577.1,2577.0,4.07408118]
[1751992805229,3.87988671,2577.4,2577.0,4.07408118]
[1751992805429,0.1936,2577.5,2577.1,3.88030463]
[1751992805430,6.065,2577.3,2577.1,3.88030463]
[1751992805754,6.065,2577.3,2577.0,4.07402088]
[1751992805955,4.63983868,2577.6,2577.0,0.79546147]
[1751992805956,0.7602,2577.6,2577.0,0.79546147]
[1751992806262,10.0,2577.7,2577.2,0.1936]
[1751992806263,6.065,2577.5,2577.2,0.1936]
[1751992806431,6.065,2577.4,2577.3,0.1936]
[1751992808262,3.87955052,2577.7,2577.3,0.1936]
[1751992808564,4.85562979,2577.8,2577.3,0.1936]
[1751992808565,9.98332161,2577.6,2577.3,0.1936]
[1751992808764,9.94457827,2577.6,2577.3,0.1936]
[1751992809337,10.97630001,2577.8,2577.3,4.07355407]
[1751992809663,10.97630001,2577.8,2577.1,0.8595033]
[1751992809664,1e-08,2577.8,2577.5,3.87969701]
[1751992809835,6.064,2577.7,2577.5,0.1936]
[1751992810363,3.8795779,2577.6,2577.5,0.1936]
[1751992810572,3.91832124,2577.6,2577.5,0.1936]
[1751992810776,3.87980159,2577.5,2577.3,0.1936]
[1751992811069,6.063,2577.4,2577.3,0.1936]
[1751992814576,9.98162228,2577.4,2577.3,0.1936]
[1751992814748,6.063,2577.4,2577.3,0.1936]
[1751992815133,6.10174334,2577.4,2577.3,0.1936]
[1751992815989,0.95760001,2577.8,2577.3,0.1936]
[1751992816190,6.062,2577.7,2577.5,3.8796101]
[1751992816389,6.062,2577.7,2577.4,0.7679]
[1751992816548,6.062,2577.7,2577.5,0.1936]
[1751992816979,6.062,2577.7,2577.5,4.07330308]
[1751992817251,1e-08,2577.8,2577.5,0.1936]
[1751992817465,1e-08,2577.8,2577.5,4.07325818]
[1751992817466,6.061,2577.7,2577.5,4.07325818]
[1751992817978,6.061,2577.7,2577.5,0.1936]
[1751992818157,1e-08,2577.8,2577.6,3.87950028]
[1751992818491,6.061,2577.7,2577.6,0.1936]
[1751992823808,11.70222256,2577.7,2577.6,0.1936]
[1751992823965,3.87971705,2577.6,2577.3,0.1936]
[1751992824173,6.09774334,2577.5,2577.3,0.1936]
[1751992824782,3.87987894,2577.4,2577.3,0.1936]
[1751992824991,0.99789517,2577.7,2577.3,0.1936]
[1751992825276,3.87972841,2577.5,2577.3,0.1936]
[1751992825581,6.09774334,2577.4,2577.3,0.1936]
[1751992825772,9.97762228,2577.4,2577.3,0.1936]
[1751992826012,6.058,2577.4,2577.3,0.1936]
[1751992826210,6.09674334,2577.4,2577.3,0.1936]
[1751992826808,3.87964985,2577.6,2577.3,0.1936]
[1751992826986,6.058,2577.5,2577.3,0.1936]
[1751992827419,0.03874334,2577.6,2577.4,0.7977]
[1751992827578,6.058,2577.6,2577.4,0.9913]
[1751992828005,6.058,2577.6,2577.4,0.1936]
[1751992829372,1e-08,2577.8,2577.4,0.1936]
[1751992829574,6.058,2577.7,2577.6,3.8794708]
[1751992829983,6.058,2577.7,2577.6,4.0730708]
[1751992830184,1e-08,2577.8,2577.6,4.0730708]
[1751992830402,1e-08,2577.8,2577.7,4.67712739]
[1751992830614,1e-08,2577.8,2577.7,6.10602694]
[1751992830819,1e-08,2577.8,2577.7,6.15722121]
[1751992832318,1e-08,2577.8,2577.7,4.68952739]
[1751992832491,1e-08,2577.8,2577.6,0.1936]
[1751992833017,3.87979345,2577.5,2577.1,0.7661]
[1751992833219,3.91832124,2577.6,2577.3,0.1936]
[1751992833420,3.87987894,2577.4,2577.3,0.1936]
[1751992833619,3.88017419,2577.3,2577.0,0.19360001]
[1751992833815,10.12936114,2577.5,2577.0,0.19360001]
[1751992833816,0.1936,2577.5,2577.0,4.07407696]
[1751992834017,6.056,2577.4,2577.0,4.07407696]
[1751992834236,6.056,2577.3,2577.0,4.07407696]
[1751992834598,6.056,2577.3,2577.1,3.88031045]
[1751992834921,6.056,2577.3,2577.0,4.07399793]
[1751992835717,6.058,2577.4,2577.2,4.07371551]
[1751992836123,6.058,2577.4,2577.2,0.1936]
[1751992836923,6.058,2577.4,2577.2,4.07377828]
[1751992837110,6.058,2577.4,2577.2,0.1936]
[1751992838591,0.002,2577.4,2577.2,4.07370408]
[1751992838832,0.002,2577.4,2577.2,4.48495985]
[1751992839140,0.002,2577.4,2577.2,0.1936]
[1751992839506,0.002,2577.4,2577.2,4.07377423]
[1751992839707,0.04074334,2577.4,2577.2,0.1936]
[1751992840440,3.9206845,2577.4,2577.2,0.1936]
[1751992840596,0.04074334,2577.4,2577.2,0.1936]
[1751992840799,3.92063422,2577.4,2577.2,0.1936]
[1751992841597,0.04074334,2577.4,2577.2,0.1936]
[1751992842235,3.92064528,2577.4,2577.2,0.1936]
[1751992842407,3.88002948,2577.3,2577.0,1e-08]
[1751992842731,3.91900783,2577.2,2577.0,0.19360001]
[1751992842909,0.03874334,2577.2,2577.0,0.19360001]
[1751992843498,3.91892938,2577.2,2577.0,0.19360001]
[1751992844199,0.03874334,2577.2,2577.0,0.19360001]
[1751992844401,0.03874334,2577.2,2577.1,3.8803306]
[1751992844709,6.054,2577.3,2577.1,0.98903814]
[1751992844910,6.054,2577.3,2577.1,4.07388924]
[1751992845122,6.054,2577.3,2577.2,3.88017615]
[1751992845319,0.002,2577.4,2577.3,3.88002948]
[1751992845533,0.002,2577.4,2577.3,4.07362948]
[1751992845918,0.002,2577.4,2577.3,4.11242977]
[1751992846538,0.002,2577.4,2577.3,4.95079016]
[1751992846726,0.002,2577.4,2577.3,4.98959045]
[1751992848125,0.002,2577.4,2577.3,4.95079016]
[1751992850936,0.002,2577.4,2577.3,6.33939045]
[1751992851940,0.002,2577.4,2577.3,6.30059016]
[1751992852919,0.002,2577.4,2577.3,4.95079016]
[1751992853120,0.002,2577.4,2577.3,4.07362948]
[1751992854552,0.002,2577.4,2577.3,4.11242977]
[1751992857730,0.002,2577.4,2577.3,0.1936]
[1751992858134,0.002,2577.4,2577.3,4.07362948]
[1751992862278,0.002,2577.4,2577.3,4.86572977]
[1751992862966,0.002,2577.4,2577.3,7.02032808]
[1751992863561,0.002,2577.4,2577.3,13.06832808]
[1751992863765,0.002,2577.4,2577.3,13.02952779]
[1751992864968,0.002,2577.4,2577.3,13.57952779]
[1751992865138,1e-08,2577.4,2577.3,23.57952779]
[1751992866572,1e-08,2577.4,2577.3,17.53152779]
[1751992866815,1e-08,2577.4,2577.3,23.57852779]
[1751992868741,1e-08,2577.4,2577.3,17.53152779]
[1751992869069,1e-08,2577.4,2577.3,23.57752779]
[1751992871989,1e-08,2577.4,2577.3,24.28160325]
[1751992872153,1e-08,2577.4,2577.3,30.32760325]
[1751992876516,1e-08,2578.1,2578.0,15.22407595]
[1751992876677,1e-08,2578.1,2578.0,29.9284688]
[1751992876867,1e-08,2578.1,2578.0,30.1220688]
[1751992877071,1e-08,2578.1,2578.0,24.0780688]
[1751992877268,1e-08,2578.1,2578.0,23.37199334]
[1751992877667,1e-08,2578.1,2578.0,23.37099334]
[1751992878790,1e-08,2578.1,2578.0,30.1210688]
[1751992879291,1e-08,2578.1,2578.0,23.37099334]
[1751992879702,1e-08,2578.1,2578.0,22.57589334]
[1751992880072,1e-08,2578.1,2578.0,5.98289334]
[1751992880278,1e-08,2578.1,2578.0,10.11457595]
[1751992880474,1e-08,2578.1,2578.0,4.07257595]
[1751992880872,1e-08,2578.1,2578.0,10.11457595]
[1751992882894,0.03874335,2578.1,2578.0,0.1936]
[1751992883067,0.03874335,2578.1,2577.9,0.1936]
[1751992883271,1e-08,2578.1,2577.9,4.07271334]
[1751992883669,1e-08,2578.1,2578.0,3.9177657]
[1751992883970,1e-08,2578.1,2578.0,4.6613657]
[1751992884182,1e-08,2578.1,2578.0,4.62257595]
[1751992884404,1e-08,2578.1,2578.0,15.4427657]
[1751992884701,1e-08,2578.1,2578.0,15.40397595]
[1751992885013,1e-08,2578.4,2578.3,4.4285246]
[1751992885300,1e-08,2578.4,2578.3,31.99167861]
[1751992885608,1e-08,2578.4,2578.3,31.95289337]
[1751992888740,1e-08,2578.5,2578.4,15.21527418]
[1751992889041,1e-08,2578.5,2578.4,19.06416666]
[1751992890729,1e-08,2578.5,2578.4,25.10316666]
[1751992891289,1e-08,2578.5,2578.4,25.10216666]
[1751992892992,1e-08,2578.7,2578.4,25.10216666]
[1751992893328,0.002,2578.9,2578.8,14.4277726]
[1751992893506,0.7804,2579.6,2579.0,3.87747188]
[1751992893705,0.7824,2579.9,2579.7,3.87641973]
[1751992893895,0.7824,2579.9,2579.7,4.07001973]
[1751992894224,0.7824,2579.9,2579.7,10.10701973]
[1751992895518,0.7824,2579.9,2579.7,6.2306]
[1751992896643,0.7824,2579.9,2579.7,10.10701973]
[1751992897455,0.7824,2579.9,2579.7,6.2306]
[1751992897630,0.7824,2579.9,2579.7,10.10701973]
[1751992900455,0.0736752,2579.8,2579.7,10.10701973]
[1751992903523,0.0736752,2579.8,2579.7,11.50537785]
[1751992904579,0.0736752,2579.8,2579.7,12.05537785]
[1751992905852,0.8401752,2579.8,2579.7,11.50137785]
[1751992906070,0.8401752,2579.8,2579.7,0.1936]
[1751992906756,4.71644467,2579.8,2579.4,0.1936]
[1751992906971,0.03874334,2579.7,2579.4,4.07044893]
[1751992907547,0.8401752,2579.8,2579.4,4.07034324]
[1751992907779,0.03874334,2579.7,2579.6,3.87657001]
[1751992908083,0.8401752,2579.8,2579.6,3.87657001]
[1751992908084,0.8401752,2579.8,2579.7,3.87641973]
[1751992909348,0.0736752,2579.8,2579.7,3.87641973]
[1751992911166,0.0736752,2579.8,2579.6,4.07009904]
[1751992911487,0.0736752,2579.8,2579.6,6.2256]
[1751992911488,0.82674334,2579.7,2579.6,6.2256]
[1751992911980,0.788,2579.7,2579.6,6.2256]
[1751992913049,0.788,2579.7,2579.0,10.0]
[1751992913381,0.03874334,2579.6,2579.4,0.1936]
[1751992913565,0.03874334,2579.6,2579.4,6.2246]
[1751992913763,0.82674334,2579.7,2579.4,10.10145726]
[1751992913993,0.82674334,2579.7,2579.5,3.87665413]
[1751992914196,0.788,2579.7,2579.4,10.10138878]
[1751992914754,0.03874334,2579.6,2579.4,10.10138878]
[1751992914968,0.03874334,2579.6,2579.4,6.2246]
[1751992915463,0.03874334,2579.6,2579.4,10.10145616]
[1751992915697,0.788,2579.7,2579.5,3.87672029]
[1751992916275,0.788,2579.7,2579.6,3.87657001]
[1751992916470,0.788,2579.7,2579.6,4.07017001]
[1751992917416,0.788,2579.7,2579.6,0.1936]
[1751992917623,0.788,2579.7,2579.6,4.07017001]
[1751992918819,0.788,2579.7,2579.6,0.1936]
[1751992920630,3.87713856,2579.3,2578.8,3.87769835]
[1751992920932,0.85444334,2579.2,2579.0,0.1936]
[1751992922415,0.85444334,2579.2,2579.0,0.1946]
[1751992923191,0.85444334,2579.2,2579.0,4.07205671]
[1751992924525,0.85444334,2579.2,2579.0,4.0720018]
[1751992924739,0.85444334,2579.2,2579.0,0.1946]
[1751992925109,1.34694232,2579.2,2579.0,0.1946]
[1751992925426,0.85444334,2579.2,2579.0,0.1946]
[1751992927127,1.04804334,2579.2,2579.0,3.87846259]
[1751992927505,1.04804334,2579.2,2579.0,0.001]
[1751992928103,4.92522952,2579.2,2579.0,0.001]
[1751992928429,1.04804334,2579.2,2579.0,0.001]
[1751992929525,1.04804334,2579.2,2579.0,3.87846968]
[1751992929839,0.85444334,2579.2,2579.1,3.87732154]
[1751992930040,0.8157,2579.2,2579.1,3.87732154]
[1751992930331,0.7506,2579.4,2579.2,3.87717121]
[1751992930503,0.98294334,2579.6,2579.1,0.1936]
[1751992930833,0.98294334,2579.6,2579.2,3.87717121]
[1751992931742,0.98294334,2579.6,2579.1,4.0708228]
[1751992932063,0.98294334,2579.6,2579.3,3.87701702]
[1751992932657,0.98294334,2579.6,2579.2,3.87708852]
[1751992933156,0.8209,2579.2,2579.0,0.001]
[1751992933355,0.03874334,2579.1,2579.0,0.001]
[1751992935615,1.05324334,2579.2,2579.0,3.87847188]
[1751992935845,1.05324334,2579.2,2579.0,0.001]
[1751992936157,1.05324334,2579.2,2579.0,3.87838931]
[1751992936654,1.05324334,2579.2,2579.1,3.87732154]
[1751992936865,0.0736752,2579.8,2579.0,6.8492]
[1751992936866,0.7609,2579.6,2579.0,6.8492]
[1751992937146,0.03874334,2579.5,2579.3,3.87695429]
[1751992937326,0.03874334,2579.5,2579.2,3.87709424]
[1751992938345,0.03874334,2579.5,2579.3,3.87699631]
[1751992939450,3.91555009,2579.5,2579.1,6.2196]
[1751992939652,0.1936,2579.4,2579.1,7.03581588]
[1751992940014,3.87717121,2579.2,2579.1,1.00981588]
[1751992940213,0.1936,2579.1,2579.0,0.001]
[1751992940447,4.10966488,2579.1,2579.0,0.001]
[1751992942852,0.23234334,2579.1,2579.0,0.001]
[1751992943452,4.10966488,2579.1,2579.0,0.001]
[1751992944539,0.23234334,2579.1,2579.0,0.001]
[1751992945824,4.10966488,2579.1,2579.0,0.001]
[1751992946027,4.10966488,2579.1,2578.7,3.82886063]
[1751992946352,0.1936,2578.9,2578.7,3.82886063]
[1751992946556,0.1936,2578.9,2578.8,3.8777726]
[1751992947272,0.1936,2578.9,2578.7,3.87783459]
[1751992948373,0.1936,2578.9,2578.8,3.8777726]
[1751992948538,0.1936,2578.9,2578.7,3.87784427]
[1751992948739,0.1936,2578.9,2578.8,3.8777726]
[1751992949668,0.1936,2578.9,2578.7,3.87784705]
[1751992949839,0.1936,2578.9,2578.6,3.87802384]
[1751992950164,0.1936,2578.9,2578.6,6.023]
[1751992950165,0.23234334,2578.9,2578.6,6.023]
[1751992950365,0.23234334,2578.9,2578.6,9.90105456]
[1751992950949,0.1936,2578.9,2578.6,9.90105456]
[1751992951967,0.1936,2578.9,2578.7,0.814]
[1751992952171,4.07125295,2578.9,2578.5,4.07175014]
[1751992952367,3.91657758,2578.8,2578.5,0.1936]
[1751992952569,3.91669429,2578.7,2578.5,0.1936]
[1751992952937,3.91666906,2578.7,2578.4,0.001]
[1751992953137,0.23234334,2578.7,2578.4,3.87935987]
[1751992953571,4.90847887,2578.7,2578.4,0.001]
[1751992953771,5.78709483,2578.7,2578.4,0.001]
[1751992953969,1.9091593,2578.7,2578.4,3.87936496]
[1751992954177,1.03054334,2578.7,2578.4,3.87936496]
[1751992954555,0.23234334,2578.7,2578.4,3.87936496]
[1751992954959,0.23234334,2578.7,2578.4,0.001]
[1751992955180,0.23234334,2578.7,2578.4,3.87935186]
[1751992955779,0.1936,2578.7,2578.5,3.87819297]
[1751992955965,0.1936,2578.7,2578.6,3.87807337]
[1751992956160,0.7614,2578.9,2578.6,3.87807337]
[1751992956489,0.1936,2578.9,2578.6,3.87807337]
[1751992956689,0.1936,2578.9,2578.8,3.8777726]
[1751992956866,0.1936,2579.0,2578.7,0.813]
[1751992957077,0.1936,2579.0,2578.8,3.87776339]
[1751992957268,0.1936,2579.0,2578.7,4.69084764]
[1751992957489,0.1936,2579.0,2578.6,10.09359758]
[1751992957790,0.1936,2579.0,2578.7,3.87791829]
[1751992957994,0.1936,2579.0,2578.8,3.87774975]
[1751992958792,0.1936,2579.0,2578.9,3.87762224]
[1751992958969,0.7904,2579.3,2578.9,4.67507094]
[1751992958970,0.23234334,2579.3,2578.9,4.67507094]
[1751992959170,1.62754395,2579.3,2578.9,4.67507094]
[1751992959384,5.50462963,2579.3,2578.8,4.07134158]
[1751992959582,4.10942902,2579.3,2578.8,4.07134158]
[1751992959985,0.23234334,2579.3,2578.8,4.07134158]
[1751992960298,1.62757446,2579.3,2578.9,3.87761026]
[1751992960497,1.58883112,2579.3,2579.2,3.87717121]
[1751992960802,0.1956,2579.5,2579.2,3.8771583]
[1751992960967,1.59067964,2579.5,2579.2,3.8771583]
[1751992961168,0.1956,2579.5,2579.2,3.8771583]
[1751992961903,0.002,2579.5,2579.4,3.87687059]
[1751992962686,0.002,2579.5,2579.3,3.87697009]
[1751992963113,0.002,2579.5,2579.4,3.87687059]
[1751992963781,0.002,2579.5,2579.2,7.08593624]
[1751992963980,0.002,2579.5,2579.3,6.02]
[1751992964177,0.002,2579.5,2579.3,9.89701141]
[1751992965412,0.002,2579.5,2579.3,6.02]
[1751992965603,0.002,2579.5,2579.4,3.87687059]
[1751992965815,0.002,2579.5,2579.4,3.91563929]
[1751992966007,0.002,2579.5,2579.4,4.10923929]
[1751992966578,0.002,2579.5,2579.4,4.07047059]
[1751992967313,0.002,2579.5,2579.2,6.2126]
[1751992967502,0.002,2579.5,2579.1,6.019]
[1751992967503,4.68818513,2579.5,2579.1,6.019]
[1751992967815,1.005,2579.5,2579.1,9.89631449]
[1751992968018,1.005,2579.5,2579.2,3.87714602]
[1751992968224,0.1956,2579.5,2579.2,3.87714602]
[1751992969516,0.1956,2579.5,2579.1,6.019]
[1751992969695,0.1956,2579.5,2579.2,3.87717121]
[1751992970283,0.1956,2579.5,2579.3,3.8769416]
[1751992970519,0.002,2579.5,2579.3,3.8769416]
[1751992971116,0.002,2579.5,2579.2,5.50616977]
[1751992971812,3.87690326,2579.4,2579.2,0.1936]
[1751992972016,3.87703247,2579.3,2578.7,3.87785793]
[1751992972227,0.9736,2579.3,2579.0,3.87746314]
[1751992972608,0.03874334,2579.2,2578.6,4.64866167]
[1751992972822,4.10959879,2579.2,2578.7,4.07150892]
[1751992973015,4.10959879,2579.2,2578.8,3.87776529]
[1751992973217,3.8773304,2579.1,2578.7,4.07146115]
[1751992973420,3.8773304,2579.1,2578.7,0.1936]
[1751992973731,11.00324508,2579.2,2578.8,3.87775474]
[1751992973923,7.08725363,2579.2,2578.8,3.87775474]
[1751992974123,7.12599697,2579.2,2578.8,3.87775474]
[1751992974528,6.24934334,2579.2,2578.9,3.87760338]
[1751992974715,6.2106,2579.2,2578.9,3.87760338]
[1751992975035,6.2106,2579.2,2578.8,3.87769453]
[1751992975210,10.08781807,2579.2,2578.7,4.11022783]
[1751992975403,10.08785987,2579.2,2578.7,4.11022783]
[1751992975603,10.08785987,2579.2,2578.8,3.8777422]
[1751992975816,10.08785987,2579.2,2578.7,4.11022783]
[1751992975817,10.08785987,2579.2,2578.7,4.07144389]
[1751992976024,10.08785987,2579.2,2578.7,4.11022311]
[1751992976438,10.08785987,2579.2,2578.8,3.87776686]
[1751992976623,4.07085987,2579.2,2578.8,3.87776686]
[1751992976937,4.10960321,2579.2,2578.8,3.87776686]
[1751992977238,10.67409382,2579.3,2578.8,3.87776686]
[1751992977740,0.03874334,2579.2,2578.8,3.87776686]
[1751992980038,0.03874334,2579.2,2578.7,9.89383801]
[1751992980039,3.91592559,2579.2,2578.7,9.89383801]
[1751992980411,0.03874334,2579.2,2578.8,3.87776327]
[1751992981734,3.91592659,2579.2,2578.7,9.89386319]
[1751992982041,4.66474926,2579.0,2578.5,13.87913382]
[1751992982337,0.82594334,2579.0,2578.6,3.87806376]
[1751992982641,0.82594334,2579.0,2578.7,3.87789137]
[1751992982822,0.82594334,2579.0,2578.6,3.8779903]
[1751992983030,0.7872,2579.0,2578.6,3.8779903]
[1751992983229,0.82594334,2579.0,2578.6,3.8779903]
[1751992983413,0.7872,2579.0,2578.6,3.8779903]
[1751992983734,0.7872,2579.0,2578.7,3.87792006]
[1751992983941,6.015,2579.1,2578.8,3.87772588]
[1751992984154,0.766,2579.6,2578.7,0.58877922]
[1751992984307,9.89193282,2579.4,2578.9,3.87751413]
[1751992984509,9.89193282,2579.4,2578.9,3.87761234]
[1751992984510,3.91580224,2579.3,2578.9,3.87761234]
[1751992984743,0.03874334,2579.3,2578.9,3.87761234]
[1751992985111,3.91577374,2579.3,2578.9,3.87761234]
[1751992985631,6.05374334,2579.3,2579.0,3.87740386]
[1751992986013,0.03874334,2579.3,2579.0,3.87740386]
[1751992986245,6.05274334,2579.4,2579.1,3.87731716]
[1751992987244,0.1936,2579.3,2579.1,3.87731716]
[1751992987814,0.1936,2579.3,2578.9,3.87756542]
[1751992988008,0.1936,2579.3,2579.0,3.87747188]
[1751992988211,0.1936,2579.3,2579.1,3.87730395]
[1751992988842,0.002,2579.5,2579.3,3.87702089]
[1751992989044,0.002,2579.5,2579.4,3.87687059]
[1751992989545,0.002,2579.5,2579.2,4.07067624]
[1751992989734,0.002,2579.5,2579.4,3.87687059]
[1751992992490,0.002,2579.5,2579.4,4.66667059]
[1751992992649,0.002,2579.5,2579.4,4.86027059]
[1751992992844,0.002,2579.5,2579.4,4.89903929]
[1751992998069,0.002,2579.5,2579.4,3.87687059]
[1751992998592,0.002,2579.5,2579.3,9.88794573]
[1751992998796,0.002,2579.5,2579.4,3.87687059]
[1751992999782,0.002,2579.5,2579.2,1.33669762]
[1751992999986,0.002,2579.5,2579.3,3.87695006]
[1751993000290,0.002,2579.5,2579.2,6.2036]
[1751993000591,0.002,2579.5,2579.4,3.87687059]
[1751993001163,0.002,2579.5,2579.3,3.87695541]
[1751993001367,0.002,2579.5,2579.4,3.87687059]
[1751993001887,0.002,2579.5,2579.4,5.27261319]
[1751993002886,0.002,2579.5,2579.4,12.03561319]
[1751993003421,0.002,2579.5,2579.4,11.28161319]
[1751993006824,0.002,2579.5,2579.4,9.88587059]
[1751993007236,0.002,2579.5,2579.2,0.9851]
[1751993007444,0.002,2579.5,2579.3,6.008]
[1751993007734,0.002,2579.5,2579.3,9.88501146]
[1751993008146,0.002,2579.5,2579.4,3.87687059]
[1751993008606,0.002,2579.5,2579.4,5.31120133]
[1751993008807,0.002,2579.5,2579.4,6.09680133]
[1751993009012,0.002,2579.5,2579.4,6.29040133]
[1751993011345,0.002,2579.5,2579.4,5.46603263]
[1751993011710,0.002,2579.5,2579.3,9.88501589]
[1751993011711,0.002,2579.5,2579.3,3.8769751]
[1751993012025,0.002,2579.5,2579.3,6.007]
[1751993012609,0.002,2579.5,2579.2,4.07071747]
[1751993012833,0.002,2579.5,2579.3,6.007]
[1751993013137,0.002,2579.5,2579.3,9.88399368]
[1751993013344,0.002,2579.5,2579.3,6.007]
[1751993014440,0.8086,2579.4,2579.2,4.07067885]
[1751993014630,0.8086,2579.4,2579.2,6.1996]
[1751993015142,0.8086,2579.4,2579.2,9.88316108]
[1751993015514,0.1956,2579.5,2579.3,3.87702089]
[1751993019454,0.1956,2579.5,2579.2,9.88308489]
[1751993019661,0.1956,2579.5,2579.3,3.87693153]
[1751993022066,0.1956,2579.5,2579.2,9.88309328]
[1751993022471,0.1956,2579.5,2579.2,3.87709328]
[1751993022634,0.03874334,2579.4,2579.2,6.004]
[1751993022971,0.23434334,2579.5,2579.3,3.87702089]
[1751993023474,0.23434334,2579.5,2579.2,3.87709654]
[1751993025648,0.23434334,2579.5,2579.1,9.88122963]
[1751993025849,4.11106728,2579.5,2579.2,6.003]
[1751993026164,4.99068188,2579.5,2579.1,9.88022963]
[1751993026370,4.99068188,2579.5,2579.1,6.003]
[1751993026766,3.87689888,2579.4,2579.1,6.003]
[1751993026942,0.03874334,2579.3,2578.9,3.87754778]
[1751993027146,0.9833,2579.2,2579.0,6.003]
[1751993027375,0.9833,2579.2,2579.1,3.87732154]
[1751993027963,0.9833,2579.2,2579.0,9.87938818]
[1751993028975,4.86049547,2579.2,2578.8,4.07130527]
[1751993029145,1.02204334,2579.2,2578.9,6.002]
[1751993029648,1.02204334,2579.2,2578.9,9.87959473]
[1751993030062,0.9833,2579.2,2578.9,9.87959473]
[1751993030461,0.9833,2579.2,2579.0,3.87745694]
[1751993030659,0.1936,2579.2,2579.1,3.87732154]
[1751993030881,0.7853,2579.5,2579.1,3.87732154]
[1751993031180,0.1936,2579.4,2579.1,3.87732154]
[1751993031684,0.1936,2579.4,2579.2,3.87716286]
[1751993032484,0.1936,2579.4,2579.1,3.87723492]
[1751993034457,0.1936,2579.4,2579.0,3.87739794]
[1751993035481,0.1936,2579.4,2579.1,3.87730779]
[1751993038102,0.1936,2579.4,2579.2,3.87715414]
[1751993038770,0.1936,2579.4,2579.0,3.87743296]
[1751993038967,0.1936,2579.4,2579.1,3.87731328]
[1751993039782,0.1936,2579.4,2578.9,10.07314048]
[1751993040091,0.1936,2579.4,2579.1,3.87731985]
[1751993040296,0.1936,2579.4,2579.0,3.87738483]
[1751993041592,0.8127,2579.1,2578.5,0.001]
[1751993041796,3.87768258,2578.9,2578.5,0.1946]
[1751993041999,0.8127,2578.8,2578.6,3.87800674]
[1751993042899,10.10881826,2579.0,2578.5,0.1946]
[1751993042900,1.0105,2579.0,2578.5,0.1946]
[1751993043100,1.0105,2579.0,2578.8,3.87775606]
[1751993043299,0.8169,2579.2,2578.9,3.87762224]
[1751993043501,1.0105,2579.2,2578.9,3.87762224]
[1751993043689,2.40531561,2579.2,2578.9,3.87762224]
[1751993044118,2.44405895,2579.2,2578.9,3.87762224]
[1751993044408,2.44405895,2579.2,2578.8,3.87768991]
[1751993044616,1.04924334,2579.2,2578.8,3.87768991]
[1751993044780,6.74274819,2579.1,2578.7,3.87783415]
[1751993044981,0.1936,2578.9,2578.8,3.8777726]
[1751993046125,0.8169,2579.2,2578.8,3.8777726]
[1751993046309,0.1936,2579.1,2578.8,3.87770574]
[1751993046520,0.36308343,2579.0,2578.8,3.87770574]
[1751993046690,0.36308343,2578.9,2578.8,3.87770574]
[1751993047711,1.75730391,2578.9,2578.8,3.87770574]
[1751993048585,0.1936,2579.1,2579.0,3.87747188]
[1751993048586,0.18460643,2579.1,2579.0,3.87747188]
[1751993048813,0.18460643,2579.1,2579.0,0.35986179]
[1751993049127,0.18460643,2579.1,2579.0,4.23733367]
[1751993049287,0.1936,2579.3,2579.0,5.04875747]
[1751993049490,0.24206276,2579.3,2578.9,3.450515]
[1751993049693,0.24206276,2579.3,2579.0,0.35984943]
[1751993050024,0.24206276,2579.3,2578.5,0.551]
[1751993050025,3.8779261,2578.7,2578.5,0.001]
[1751993050192,0.1936,2578.7,2578.5,0.001]
[1751993050395,0.24207403,2578.7,2578.5,0.001]
[1751993050589,3.87807337,2578.6,2578.5,0.001]
[1751993051324,3.92645958,2578.7,2578.6,0.001]
[1751993052404,9.92345958,2578.7,2578.6,0.001]
[1751993052600,9.87498555,2578.7,2578.6,0.001]
[1751993053338,10.70318555,2578.7,2578.6,0.001]
[1751993054520,10.19843792,2578.7,2578.6,0.001]
[1751993055310,5.996,2579.0,2578.6,3.87894379]
[1751993055518,0.1936,2578.9,2578.7,0.38799438]
[1751993056076,4.07122932,2578.9,2578.7,0.38799438]
[1751993056351,4.94519959,2578.9,2578.6,0.001]
[1751993056722,5.996,2578.8,2578.6,0.001]
[1751993056938,4.89672932,2578.9,2578.6,0.001]
[1751993057139,9.92224832,2578.8,2578.6,0.001]